[Event "FIDE Chesscom Grand Swiss 2019"]
[Site "Douglas-Isle of Man"]
[Date "2019.10.15"]
[Round "6.32"]
[White "Le, Quang Liem"]
[Black "Keymer, Vincent"]
[Result "1-0"]
[ECO "B80"]
[WhiteElo "2708"]
[BlackElo "2506"]
[Annotator "RC"]
[PlyCount "129"]
[EventDate "2019.10.10"]
[EventType "swiss"]
[EventCountry "GBR"]
[SourceTitle "playchess.com"]
[Source "ChessBase"]
[SourceQuality "1"]
[TimeControl "40/6000+30:20/3000+30:900+30"]

1. e4 {[%emt 0:00:00]} c5 {[%emt 0:00:00]} 2. Nc3 {[%emt 0:00:00]} a6 {[%emt 0:00:01]} 3. Nge2 {[%emt 0:00:15]} d6 {[%emt 0:00:33]} 4. g3 {[%emt 0:00:15]} Nf6 {[%emt 0:01:40]} 5. Bg2 {[%emt 0:00:12]} Nc6 {[%emt 0:00:57]} 6. O-O {[%emt 0:00:25]} e6 {[%emt 0:01:10]} 7. d4 {[%emt 0:00:48]} cxd4 {[%emt 0:00:22]} 8. Nxd4 {[%emt 0:00:08]} Bd7 {[%emt 0:00:12]} 9. Be3 {[%emt 0:01:15]} Ne5 {[%emt 0:03:23]} 10. h3 {[%emt 0:03:25]} Rc8 {[%emt 0:05:17]} 11. a4 {[%emt 0:01:16]} Be7 {[%emt 0:07:01]} 12. Nde2 {[%emt 0:11:05]} O-O {[%emt 0:08:10]} 13. b3 {[%emt 0:00:39]} Nc6 {[%emt 0:10:04]} 14. g4 {[%emt 0:10:10]} Nb4 {[%emt 0:08:45]} 15. a5 {[%emt 0:03:56]} Bc6 {[%emt 0:11:29]} 16. g5 {[%emt 0:04:49]} Nd7 {[%emt 0:03:30]} 17. f4 {[%emt 0:01:35]} Nc5 {[%emt 0:08:55]} 18. Ng3 {[%emt 0:03:54]} d5 {[%emt 0:05:36]} 19. exd5 {[%emt 0:05:00]} Nxd5 {[%emt 0:00:29]} 20. Nxd5 {[%emt 0:00:10]} Bxd5 {[%emt 0:01:52]} 21. Bxd5 {[%emt 0:01:52]} exd5 {[%emt 0:02:49]} 22. Rf2 {[%emt 0:20:41]} Ne6 {[%emt 0:05:11]} 23. Bb6 {[%emt 0:02:33]} Qd7 {[%emt 0:01:29]} 24. Qg4 {[%emt 0:01:04]} Qc6 {[%emt 0:11:38]} 25. Re1 {[%emt 0:14:20]} Bb4 {[%emt 0:04:20]} 26. Ree2 {[%emt 0:01:14]} Nc5 {[%emt 0:00:49]} 27. f5 {[%emt 0:00:36]} Ne4 {[%emt 0:00:42]} 28. Nxe4 {[%emt 0:01:07]} dxe4 {[%emt 0:00:03]} 29. Rxe4 {[%emt 0:00:51]} Bc5 {[%emt 0:00:55]} 30. Bxc5 {[%emt 0:00:09]} Qxc5 {[%emt 0:00:01]} 31. b4 {[%emt 0:00:38]} Qc3 {[%emt 0:01:02]} 32. f6 {[%emt 0:01:48]} Rfe8 {[%emt 0:02:35]} 33. Re7 {[%emt 0:05:26]} Rxe7 {[%emt 0:01:42]} 34. fxe7 {[%emt 0:00:03]} Re8 {[%emt 0:00:08]} 35. Re2 {[%emt 0:01:00]} Qc7 {[%emt 0:00:03]} 36. Kf1 {[%emt 0:05:23]} Rxe7 {[%emt 0:03:59]} 37. Rxe7 {[%emt 0:00:11]} Qxe7 {[%emt 0:00:02]} 38. Qc8+ {[%emt 0:00:10]} Qf8 {[%emt 0:00:03]} 39. Qxb7 {[%emt 0:00:11]} h6 {[%emt 0:01:06]} 40. gxh6 {[%emt 0:06:10]} Qd6 {[%emt 0:01:12]} 41. Qc8+ {[%emt 0:17:00]} Kh7 {[%emt 0:00:06]} 42. hxg7 {[%emt 0:00:39]} Qf4+ {[%emt 0:11:48]} 43. Kg2 {[%emt 0:00:08]} Qe4+ {[%emt 0:03:54]} 44. Kg3 {[%emt 0:00:07]} Qe3+ {[%emt 0:10:03]} 45. Kg4 {[%emt 0:00:08]} Qe4+ {[%emt 0:06:41]} 46. Kg5 {[%emt 0:00:16]} Kxg7 {[%emt 0:02:35]} 47. Qc3+ {[%emt 0:01:14]} Kg8 {[%emt 0:00:50]} 48. Qg3 {[%emt 0:03:02]} Kg7 {[%emt 0:05:01]} 49. c3 {[%emt 0:02:12]} Kf8 {[%emt 0:04:44]} 50. Qd6+ {[%emt 0:00:46]} Kg8 {[%emt 0:01:12]} 51. Qd4 {[%emt 0:01:12]} Qf3 {[%emt 0:00:45]} 52. Kh4 {[%emt 0:01:06]} Kh7 {[%emt 0:01:24]} 53. Qe5 {[%emt 0:02:42]} Qf2+ {[%emt 0:01:32]} 54. Kg4 {[%emt 0:00:53]} Qg2+ {[%emt 0:00:11]} 55. Qg3 {[%emt 0:01:22]} Qe4+ {[%emt 0:01:06]} 56. Qf4 {[%emt 0:00:17]} Qg2+ {[%emt 0:00:43]} 57. Kh4 {[%emt 0:00:23]} Qg6 {[%emt 0:01:09]} 58. Qf3 {[%emt 0:00:27]} Kh6 {[%emt 0:00:55]} 59. Qf4+ {[%emt 0:00:14]} Kh7 {[%emt 0:00:05]} 60. c4 {[%emt 0:03:15]} Qe6 {[%emt 0:02:17]} 61. c5 {[%emt 0:21:50]} Qe1+ {[%emt 0:16:07]} 62. Kg4 {[%emt 0:01:01]} Qe2+ {[%emt 0:01:31]} 63. Qf3 {[%emt 0:00:54]} f5+ {[%emt 0:01:51]} 64. Kf4 {[%emt 0:00:36]} Qc4+ {[%emt 0:00:32] Ke4} 65. Ke5 {[%emt 0:00:22]} 1-0

[Event "FIDE Chesscom Grand Swiss 2019"]
[Site "Douglas-Isle of Man"]
[Date "2019.10.15"]
[Round "6.32"]
[White "Gonzalez Vidal, Yuri"]
[Black "Bulmaga, Irina"]
[Result "1-0"]
[ECO "C54"]
[WhiteElo "2552"]
[BlackElo "2442"]
[Annotator "ChessBase"]
[PlyCount "69"]
[EventDate "2019.10.10"]
[EventType "swiss"]
[EventCountry "GBR"]
[SourceTitle "playchess.com"]
[Source "ChessBase"]
[SourceQuality "1"]
[TimeControl "40/6000+30:20/3000+30:900+30"]

1. e4 {[%emt 0:00:00]} e5 {[%emt 0:00:00]} 2. Nf3 {[%emt 0:00:00]} Nc6 {[%emt 0:00:00]} 3. Bc4 {[%emt 0:01:58]} Bc5 {[%emt 0:00:00]} 4. c3 {[%emt 0:01:53]} Nf6 {[%emt 0:00:09]} 5. d3 {[%emt 0:00:12]} d6 {[%emt 0:00:15]} 6. Bb3 {[%emt 0:02:25]} a6 {[%emt 0:00:56]} 7. h3 {[%emt 0:01:42]} h6 {[%emt 0:00:31]} 8. Nbd2 {[%emt 0:01:10]} Ba7 {[%emt 0:00:23]} 9. Nf1 {[%emt 0:01:47]} d5 {[%emt 0:15:08]} 10. Qe2 {[%emt 0:01:17]} O-O {[%emt 0:09:52]} 11. Ng3 {[%emt 0:12:00]} Re8 {[%emt 0:02:33]} 12. O-O {[%emt 0:03:30]} Be6 {[%emt 0:02:31]} 13. Rd1 {[%emt 0:03:30]} Qc8 {[%emt 0:07:15]} 14. Bc2 {[%emt 0:06:27]} b5 {[%emt 0:10:19]} 15. d4 {[%emt 0:07:29]} exd4 {[%emt 0:20:54]} 16. e5 {[%emt 0:00:38]} Bxh3 {[%emt 0:03:49]} 17. gxh3 {[%emt 0:15:52]} d3 {[%emt 0:03:58]} 18. Qxd3 {[%emt 0:10:15]} Nxe5 {[%emt 0:00:25]} 19. Nxe5 {[%emt 0:00:19]} Rxe5 {[%emt 0:10:57]} 20. Qf1 {[%emt 0:11:18]} Nh5 {[%emt 0:09:54]} 21. Nxh5 {[%emt 0:00:00]} Rxh5 {[%emt 0:00:03]} 22. Rd3 {[%emt 0:00:00]} Qf5 {[%emt 0:03:41]} 23. Bd1 {[%emt 0:00:26]} Rh4 {[%emt 0:03:22]} 24. Rf3 {[%emt 0:01:59]} Qe5 {[%emt 0:02:02]} 25. Bc2 {[%emt 0:05:14]} Re8 {[%emt 0:01:44]} 26. Be3 {[%emt 0:03:35]} c5 {[%emt 0:01:02]} 27. Qg2 {[%emt 0:09:22]} d4 {[%emt 0:01:00]} 28. Rf5 {[%emt 0:02:04]} Qe6 {[%emt 0:00:45]} 29. Bd2 {[%emt 0:01:13]} Bb8 {[%emt 0:00:31]} 30. cxd4 {[%emt 0:02:00]} Qe2 {[%emt 0:00:18]} 31. Qd5 {[%emt 0:01:07]} Rf8 {[%emt 0:00:41]} 32. dxc5 {[%emt 0:01:40]} Rxh3 {[%emt 0:00:27]} 33. Qe4 {[%emt 0:02:18]} Qxd2 {[%emt 0:00:32]} 34. Rd5 {[%emt 0:00:25]} Bh2+ {[%emt 0:00:31]} 35. Kf1 {[%emt 0:00:13]} 1-0

[Event "FIDE Chesscom Grand Swiss 2019"]
[Site "Douglas-Isle of Man"]
[Date "2019.10.15"]
[Round "6.33"]
[White "Alekseev, Evgeny"]
[Black "Shankland, Sam"]
[Result "1/2-1/2"]
[ECO "C77"]
[WhiteElo "2629"]
[BlackElo "2705"]
[Annotator "RC"]
[PlyCount "71"]
[EventDate "2019.10.10"]
[EventType "swiss"]
[EventCountry "GBR"]
[SourceTitle "playchess.com"]
[Source "ChessBase"]
[SourceQuality "1"]
[TimeControl "40/6000+30:20/3000+30:900+30"]

1. e4 {[%emt 0:03:15]} e5 {[%emt 0:00:00]} 2. Nf3 {[%emt 0:00:23]} Nc6 {[%emt 0:00:00]} 3. Bb5 {[%emt 0:01:15]} a6 {[%emt 0:00:00]} 4. Ba4 {[%emt 0:00:13]} Nf6 {[%emt 0:00:01]} 5. d3 {[%emt 0:02:38]} Bc5 {[%emt 0:00:34]} 6. c3 {[%emt 0:01:05]} b5 {[%emt 0:00:25]} 7. Bc2 {[%emt 0:05:17]} d5 {[%emt 0:00:16]} 8. O-O {[%emt 0:18:27]} O-O {[%emt 0:04:23]} 9. Nbd2 {[%emt 0:05:17]} Be6 {[%emt 0:01:32]} 10. h3 {[%emt 0:01:39]} dxe4 {[%emt 0:11:36]} 11. dxe4 {[%emt 0:02:07]} Bb6 {[%emt 0:05:27]} 12. Re1 {[%emt 0:03:34]} Nh5 {[%emt 0:06:42]} 13. Nf1 {[%emt 0:03:46]} Qf6 {[%emt 0:14:31]} 14. Ne3 {[%emt 0:06:14]} Rad8 {[%emt 0:02:51]} 15. Nd5 {[%emt 0:08:37]} Qg6 {[%emt 0:00:44]} 16. Kf1 {[%emt 0:04:29]} f5 {[%emt 0:11:09]} 17. Qe2 {[%emt 0:02:27]} Rxd5 {[%emt 0:03:02]} 18. exd5 {[%emt 0:00:38]} Bxd5 {[%emt 0:00:03]} 19. Rd1 {[%emt 0:07:53]} Bc4 {[%emt 0:09:57]} 20. Bb3 {[%emt 0:00:46]} Bxb3 {[%emt 0:01:07]} 21. axb3 {[%emt 0:00:06]} e4 {[%emt 0:02:22]} 22. Nh4 {[%emt 0:04:41]} Qe8 {[%emt 0:09:04]} 23. Rxa6 {[%emt 0:06:23]} Ne5 {[%emt 0:02:36]} 24. Be3 {[%emt 0:03:37]} Nd3 {[%emt 0:03:26]} 25. Bxb6 {[%emt 0:08:48]} Nhf4 {[%emt 0:03:41]} 26. Qe3 {[%emt 0:00:14]} cxb6 {[%emt 0:03:05]} 27. Rda1 {[%emt 0:00:55]} Qh5 {[%emt 0:03:23]} 28. g3 {[%emt 0:00:10]} g5 {[%emt 0:05:11]} 29. Ra8 {[%emt 0:02:00]} Rxa8 {[%emt 0:00:13]} 30. Rxa8+ {[%emt 0:00:04]} Kf7 {[%emt 0:00:04]} 31. Ra7+ {[%emt 0:01:09]} Kg8 {[%emt 0:02:30]} 32. gxf4 {[%emt 0:04:20]} Qd1+ {[%emt 0:00:42]} 33. Kg2 {[%emt 0:00:01]} gxh4 {[%emt 0:00:55]} 34. Ra8+ {[%emt 0:00:24]} Kf7 {[%emt 0:00:07]} 35. Ra7+ {[%emt 0:00:05]} Kg8 {[%emt 0:01:05]} 36. Ra8+ {[%emt 0:00:07]} 1/2-1/2

[Event "FIDE Chesscom Grand Swiss 2019"]
[Site "Douglas-Isle of Man"]
[Date "2019.10.15"]
[Round "6.33"]
[White "Gukesh D"]
[Black "Houska, Jovanka"]
[Result "1-0"]
[ECO "B12"]
[WhiteElo "2520"]
[BlackElo "2430"]
[Annotator "ChessBase"]
[PlyCount "61"]
[EventDate "2019.10.10"]
[EventType "swiss"]
[EventCountry "GBR"]
[SourceTitle "playchess.com"]
[Source "ChessBase"]
[SourceQuality "1"]
[TimeControl "40/6000+30:20/3000+30:900+30"]

1. e4 {[%emt 0:00:00]} c6 {[%emt 0:00:00]} 2. d4 {[%emt 0:00:02]} d5 {[%emt 0:00:00]} 3. e5 {[%emt 0:00:14]} Bf5 {[%emt 0:00:36]} 4. Nf3 {[%emt 0:00:13]} e6 {[%emt 0:00:09]} 5. Be2 {[%emt 0:00:07]} Ne7 {[%emt 0:00:26]} 6. O-O {[%emt 0:01:40]} c5 {[%emt 0:00:02]} 7. Na3 {[%emt 0:10:53]} Nec6 {[%emt 0:00:44]} 8. c4 {[%emt 0:07:43]} Be4 {[%emt 0:03:10]} 9. Nb5 {[%emt 0:19:00]} Nd7 {[%emt 0:23:08]} 10. Bg5 {[%emt 0:18:19]} Qb8 {[%emt 0:04:31]} 11. Rc1 {[%emt 0:05:05]} dxc4 {[%emt 0:28:03]} 12. Nd2 {[%emt 0:15:48]} Bd5 {[%emt 0:00:27]} 13. Bxc4 {[%emt 0:01:50]} a6 {[%emt 0:05:18]} 14. Nd6+ {[%emt 0:04:26]} Bxd6 {[%emt 0:00:07]} 15. Bxd5 {[%emt 0:00:04]} exd5 {[%emt 0:33:29]} 16. exd6 {[%emt 0:00:11]} Nxd4 {[%emt 0:01:53]} 17. Re1+ {[%emt 0:03:20]} Kf8 {[%emt 0:01:05]} 18. Nf3 {[%emt 0:05:07]} Qxd6 {[%emt 0:03:51]} 19. Be7+ {[%emt 0:01:05]} Qxe7 {[%emt 0:00:05]} 20. Rxe7 {[%emt 0:00:04]} Kxe7 {[%emt 0:00:31]} 21. Nxd4 {[%emt 0:00:10]} cxd4 {[%emt 0:00:04]} 22. Qxd4 {[%emt 0:00:10]} Rhc8 {[%emt 0:01:16]} 23. Re1+ {[%emt 0:00:55]} Kf8 {[%emt 0:00:16]} 24. Qxd5 {[%emt 0:00:42]} Nc5 {[%emt 0:00:30]} 25. b4 {[%emt 0:00:54]} Ne6 {[%emt 0:00:15]} 26. Qxb7 {[%emt 0:00:14]} Rcb8 {[%emt 0:00:34]} 27. Qe4 {[%emt 0:02:00]} a5 {[%emt 0:00:56]} 28. bxa5 {[%emt 0:01:54]} Rxa5 {[%emt 0:00:29]} 29. Qxh7 {[%emt 0:00:36]} Rb4 {[%emt 0:01:02]} 30. Qh8+ {[%emt 0:01:15]} Ke7 {[%emt 0:00:05]} 31. Qxg7 {[%emt 0:01:02]} 1-0

[Event "FIDE Chesscom Grand Swiss 2019"]
[Site "Douglas-Isle of Man"]
[Date "2019.10.15"]
[Round "6.34"]
[White "Amin, Bassem"]
[Black "Esipenko, Andrey"]
[Result "1-0"]
[ECO "C54"]
[WhiteElo "2699"]
[BlackElo "2624"]
[Annotator "RC"]
[PlyCount "57"]
[EventDate "2019.10.10"]
[EventType "swiss"]
[EventCountry "GBR"]
[SourceTitle "playchess.com"]
[Source "ChessBase"]
[SourceQuality "1"]
[TimeControl "40/6000+30:20/3000+30:900+30"]

1. e4 {[%emt 0:04:32]} e5 {[%emt 0:00:00]} 2. Nf3 {[%emt 0:00:54]} Nc6 {[%emt 0:00:00]} 3. Bc4 {[%emt 0:00:40]} Bc5 {[%emt 0:01:15]} 4. O-O {[%emt 0:00:19]} Nf6 {[%emt 0:00:10]} 5. d3 {[%emt 0:00:08]} d6 {[%emt 0:04:41]} 6. c3 {[%emt 0:04:31]} O-O {[%emt 0:01:37]} 7. Re1 {[%emt 0:02:41]} h6 {[%emt 0:00:00]} 8. Nbd2 {[%emt 0:00:40]} a5 {[%emt 0:00:00]} 9. Nf1 {[%emt 0:00:44]} a4 {[%emt 0:00:00]} 10. Ng3 {[%emt 0:02:44]} Ra5 {[%emt 0:01:50]} 11. d4 {[%emt 0:08:10]} Bb6 {[%emt 0:12:24]} 12. h3 {[%emt 0:13:45]} exd4 {[%emt 0:04:40]} 13. cxd4 {[%emt 0:00:15]} d5 {[%emt 0:05:49]} 14. exd5 {[%emt 0:00:20]} Nxd5 {[%emt 0:00:06]} 15. a3 {[%emt 0:08:25]} Nce7 {[%emt 0:18:06]} 16. Qd3 {[%emt 0:06:47]} Ra8 {[%emt 0:02:44]} 17. Ba2 {[%emt 0:10:05]} Ng6 {[%emt 0:21:57]} 18. Ne5 {[%emt 0:07:38]} Ndf4 {[%emt 0:06:23]} 19. Bxf4 {[%emt 0:04:04]} Nxf4 {[%emt 0:00:12]} 20. Qf3 {[%emt 0:00:52]} Qxd4 {[%emt 0:13:15]} 21. Rad1 {[%emt 0:05:25]} Qxb2 {[%emt 0:04:40]} 22. Bxf7+ {[%emt 0:01:40]} Rxf7 {[%emt 0:00:05]} 23. Rd8+ {[%emt 0:00:28]} Rf8 {[%emt 0:00:19]} 24. Rxf8+ {[%emt 0:01:12]} Kxf8 {[%emt 0:00:02]} 25. Qxf4+ {[%emt 0:00:17]} Kg8 {[%emt 0:00:03]} 26. Qf7+ {[%emt 0:02:48]} Kh7 {[%emt 0:00:18]} 27. Qg6+ {[%emt 0:00:16]} Kg8 {[%emt 0:00:04]} 28. Nd3 {[%emt 0:01:44]} Bxf2+ {[%emt 0:00:50]} 29. Kh1 {[%emt 0:01:00]} 1-0

[Event "FIDE Chesscom Grand Swiss 2019"]
[Site "Douglas-Isle of Man"]
[Date "2019.10.15"]
[Round "6.34"]
[White "Rakotomaharo, Fy Antenaina"]
[Black "Kashlinskaya, Alina"]
[Result "1/2-1/2"]
[ECO "C48"]
[WhiteElo "2428"]
[BlackElo "2481"]
[Annotator "RC"]
[PlyCount "69"]
[EventDate "2019.10.10"]
[EventType "swiss"]
[EventCountry "GBR"]
[SourceTitle "playchess.com"]
[Source "ChessBase"]
[SourceQuality "1"]
[TimeControl "40/6000+30:20/3000+30:900+30"]

1. e4 {[%emt 0:00:15]} e5 {[%emt 0:00:00]} 2. Nf3 {[%emt 0:00:06]} Nf6 {[%emt 0:00:00]} 3. Nc3 {[%emt 0:00:24]} Nc6 {[%emt 0:00:00]} 4. Bb5 {[%emt 0:00:05]} Nd4 {[%emt 0:00:07]} 5. Bc4 {[%emt 0:00:07]} Bc5 {[%emt 0:00:23]} 6. d3 {[%emt 0:00:12]} d6 {[%emt 0:00:27]} 7. Na4 {[%emt 0:00:14]} b5 {[%emt 0:00:51]} 8. Nxd4 {[%emt 0:00:07]} bxc4 {[%emt 0:00:07]} 9. Nf5 {[%emt 0:00:04]} Bxf5 {[%emt 0:00:53]} 10. exf5 {[%emt 0:00:05]} cxd3 {[%emt 0:00:54]} 11. Nxc5 {[%emt 0:00:22]} dxc5 {[%emt 0:00:26]} 12. Qxd3 {[%emt 0:01:49]} Qxd3 {[%emt 0:01:02]} 13. cxd3 {[%emt 0:00:04]} O-O-O {[%emt 0:02:10]} 14. Ke2 {[%emt 0:00:06]} Nd5 {[%emt 0:01:55]} 15. Rd1 {[%emt 0:02:53]} Rd6 {[%emt 0:00:37]} 16. Bg5 {[%emt 0:02:03]} h6 {[%emt 0:17:21]} 17. Be3 {[%emt 0:09:05]} Nf4+ {[%emt 0:03:53]} 18. Bxf4 {[%emt 0:16:20]} exf4 {[%emt 0:00:17]} 19. Rac1 {[%emt 0:00:04]} Rd5 {[%emt 0:11:38]} 20. Rc4 {[%emt 0:01:10]} Rxf5 {[%emt 0:08:12]} 21. Kf3 {[%emt 0:05:50]} Re8 {[%emt 0:02:08]} 22. Rdc1 {[%emt 0:04:03]} Rd5 {[%emt 0:02:15]} 23. R1c3 {[%emt 0:04:34]} Red8 {[%emt 0:01:45]} 24. Rxf4 {[%emt 0:05:44]} Rxd3+ {[%emt 0:01:17]} 25. Rxd3 {[%emt 0:00:04]} Rxd3+ {[%emt 0:00:07]} 26. Ke2 {[%emt 0:00:03]} Rd7 {[%emt 0:00:15]} 27. Rf5 {[%emt 0:00:10]} c4 {[%emt 0:03:52]} 28. Rf4 {[%emt 0:09:08]} c3 {[%emt 0:00:18]} 29. bxc3 {[%emt 0:00:04]} Kb7 {[%emt 0:00:21]} 30. h4 {[%emt 0:01:58]} f6 {[%emt 0:22:04]} 31. Ke3 {[%emt 0:06:54]} Rd5 {[%emt 0:06:42]} 32. Rb4+ {[%emt 0:02:59]} Kc6 {[%emt 0:00:25]} 33. Rc4+ {[%emt 0:00:11]} Kb6 {[%emt 0:02:48]} 34. a4 {[%emt 0:18:56]} c5 {[%emt 0:08:55]} 35. Ke4 {[%emt 0:08:30]} 1/2-1/2

[Event "FIDE Chesscom Grand Swiss 2019"]
[Site "Douglas-Isle of Man"]
[Date "2019.10.15"]
[Round "6.35"]
[White "Movsziszian, Karen"]
[Black "Soumya, Swaminathan"]
[Result "1/2-1/2"]
[ECO "A08"]
[WhiteElo "2475"]
[BlackElo "2365"]
[Annotator "ChessBase"]
[PlyCount "94"]
[EventDate "2019.10.10"]
[EventType "swiss"]
[EventCountry "GBR"]
[SourceTitle "playchess.com"]
[Source "ChessBase"]
[SourceQuality "1"]
[TimeControl "40/6000+30:20/3000+30:900+30"]

1. g3 {[%emt 0:00:01]} c5 {[%emt 0:00:00]} 2. Bg2 {[%emt 0:00:30]} Nc6 {[%emt 0:00:00]} 3. d3 {[%emt 0:00:56]} d5 {[%emt 0:01:06]} 4. Nd2 {[%emt 0:00:25]} Nf6 {[%emt 0:02:03]} 5. e4 {[%emt 0:00:05]} e5 {[%emt 0:00:39]} 6. Ngf3 {[%emt 0:02:36]} Be7 {[%emt 0:01:18]} 7. O-O {[%emt 0:00:06]} d4 {[%emt 0:00:46]} 8. Nc4 {[%emt 0:00:16]} Qc7 {[%emt 0:00:39]} 9. a4 {[%emt 0:00:02]} Be6 {[%emt 0:01:04]} 10. b3 {[%emt 0:03:37]} Nd7 {[%emt 0:06:39]} 11. Ng5 {[%emt 0:01:43]} Bxg5 {[%emt 0:00:19]} 12. Bxg5 {[%emt 0:00:02]} f6 {[%emt 0:00:13]} 13. Bd2 {[%emt 0:00:03]} h5 {[%emt 0:00:17]} 14. f4 {[%emt 0:03:26]} h4 {[%emt 0:04:24]} 15. f5 {[%emt 0:00:43]} Bxc4 {[%emt 0:01:46]} 16. bxc4 {[%emt 0:00:15]} hxg3 {[%emt 0:00:08]} 17. hxg3 {[%emt 0:00:03]} a5 {[%emt 0:00:19]} 18. Bf3 {[%emt 0:03:50]} O-O-O {[%emt 0:05:49]} 19. Bh5 {[%emt 0:00:42]} Nb6 {[%emt 0:08:23]} 20. Kg2 {[%emt 0:00:12]} Rdf8 {[%emt 0:03:06]} 21. Rh1 {[%emt 0:01:47]} Nb4 {[%emt 0:02:48]} 22. Qb1 {[%emt 0:07:37]} Kb8 {[%emt 0:17:54]} 23. g4 {[%emt 0:02:33]} Qc6 {[%emt 0:03:27]} 24. Qb3 {[%emt 0:00:04]} Nc8 {[%emt 0:01:35]} 25. Rh3 {[%emt 0:05:19]} Ne7 {[%emt 0:09:00]} 26. Rah1 {[%emt 0:01:07]} Qc8 {[%emt 0:04:50]} 27. Kf2 {[%emt 0:09:04]} Rhg8 {[%emt 0:03:54]} 28. Rf3 {[%emt 0:01:23]} Rh8 {[%emt 0:03:59]} 29. Ke2 {[%emt 0:01:55]} Qc6 {[%emt 0:02:41]} 30. Be1 {[%emt 0:07:34]} Nc8 {[%emt 0:04:49]} 31. Bf2 {[%emt 0:02:55]} Nb6 {[%emt 0:01:39]} 32. Ra1 {[%emt 0:00:01]} Kc7 {[%emt 0:00:43]} 33. Kd2 {[%emt 0:00:45]} Kb8 {[%emt 0:01:19]} 34. Kc1 {[%emt 0:00:52]} Nc8 {[%emt 0:02:31]} 35. Kb2 {[%emt 0:01:09]} Kc7 {[%emt 0:00:47]} 36. Rh3 {[%emt 0:00:34]} Kb8 {[%emt 0:00:24]} 37. Rah1 {[%emt 0:00:16]} Ne7 {[%emt 0:00:20]} 38. Bg3 {[%emt 0:01:58]} Ka8 {[%emt 0:00:55]} 39. R3h2 {[%emt 0:05:17]} Qc8 {[%emt 0:01:30]} 40. Ka3 {[%emt 0:06:35]} Ka7 {[%emt 0:00:08]} 41. Qb1 {[%emt 0:59:39]} Qd7 {[%emt 1:00:26]} 42. g5 {[%emt 0:05:16]} Qc8 {[%emt 0:00:41]} 43. Qd1 {[%emt 0:01:39]} Ka6 {[%emt 0:00:00]} 44. Qe2 {[%emt 0:00:00]} Qc6 {[%emt 0:00:00]} 45. Qd1 {[%emt 0:00:00]} Qc8 {[%emt 0:00:00]} 46. Kb3 {[%emt 0:00:00]} Qc6 {[%emt 0:00:00]} 47. Ka3 {[%emt 0:00:00]} Qc8 {[%emt 0:00:00]} 1/2-1/2

[Event "FIDE Chesscom Grand Swiss 2019"]
[Site "Douglas-Isle of Man"]
[Date "2019.10.15"]
[Round "6.36"]
[White "Cramling, Pia"]
[Black "Danielian, Elina"]
[Result "1/2-1/2"]
[ECO "D27"]
[WhiteElo "2462"]
[BlackElo "2385"]
[Annotator "ChessBase"]
[PlyCount "127"]
[EventDate "2019.10.10"]
[EventType "swiss"]
[EventCountry "GBR"]
[SourceTitle "playchess.com"]
[Source "ChessBase"]
[SourceQuality "1"]
[TimeControl "40/6000+30:20/3000+30:900+30"]

1. d4 {[%emt 0:00:00]} d5 {[%emt 0:00:00]} 2. Nf3 {[%emt 0:00:00]} Nf6 {[%emt 0:00:00]} 3. c4 {[%emt 0:00:00]} dxc4 {[%emt 0:00:00]} 4. e3 {[%emt 0:00:00]} e6 {[%emt 0:00:00]} 5. Bxc4 {[%emt 0:00:01]} c5 {[%emt 0:00:00]} 6. O-O {[%emt 0:00:14]} Nc6 {[%emt 0:00:00]} 7. Nc3 {[%emt 0:09:59]} a6 {[%emt 0:00:57]} 8. Bb3 {[%emt 0:07:08]} b5 {[%emt 0:09:39]} 9. dxc5 {[%emt 0:03:05]} Bxc5 {[%emt 0:02:06]} 10. Qxd8+ {[%emt 0:04:27]} Kxd8 {[%emt 0:02:12]} 11. Bd2 {[%emt 0:05:11]} Bb7 {[%emt 0:00:19]} 12. Rfc1 {[%emt 0:17:40]} Bd6 {[%emt 0:02:29]} 13. Ng5 {[%emt 0:01:34]} Ke7 {[%emt 0:00:20]} 14. Nce4 {[%emt 0:02:52]} Nxe4 {[%emt 0:01:19]} 15. Nxe4 {[%emt 0:00:03]} Rhd8 {[%emt 0:01:34]} 16. Nxd6 {[%emt 0:03:32]} Rxd6 {[%emt 0:00:04]} 17. Be1 {[%emt 0:00:19]} Rd7 {[%emt 0:12:05]} 18. Rc5 {[%emt 0:04:22]} Rc8 {[%emt 0:07:07]} 19. Rac1 {[%emt 0:06:05]} Na7 {[%emt 0:09:17]} 20. Rxc8 {[%emt 0:05:40]} Nxc8 {[%emt 0:00:04]} 21. f3 {[%emt 0:00:29]} Na7 {[%emt 0:14:33]} 22. Bb4+ {[%emt 0:00:59]} Ke8 {[%emt 0:03:33]} 23. Bc3 {[%emt 0:00:16]} Kf8 {[%emt 0:01:35]} 24. Kf2 {[%emt 0:02:55]} Nc6 {[%emt 0:05:14]} 25. Rd1 {[%emt 0:02:45]} Rxd1 {[%emt 0:00:46]} 26. Bxd1 {[%emt 0:00:02]} f6 {[%emt 0:04:07]} 27. Bc2 {[%emt 0:03:45]} h6 {[%emt 0:00:05]} 28. h4 {[%emt 0:01:18]} Ke7 {[%emt 0:00:23]} 29. h5 {[%emt 0:03:01]} Kd6 {[%emt 0:06:57]} 30. Be4 {[%emt 0:04:23]} b4 {[%emt 0:14:41]} 31. Bd4 {[%emt 0:01:02]} Nd8 {[%emt 0:01:57]} 32. Bd3 {[%emt 0:02:04]} Nc6 {[%emt 0:07:46]} 33. Bb6 {[%emt 0:01:48]} Ne5 {[%emt 0:01:14]} 34. Be2 {[%emt 0:00:47]} Bd5 {[%emt 0:01:54]} 35. b3 {[%emt 0:06:17]} Bb7 {[%emt 0:00:08]} 36. e4 {[%emt 0:02:37]} Bc8 {[%emt 0:01:41]} 37. Ke3 {[%emt 0:01:15]} Nc6 {[%emt 0:00:50]} 38. f4 {[%emt 0:01:39]} Bb7 {[%emt 0:00:59]} 39. g3 {[%emt 0:05:26]} e5 {[%emt 0:00:37]} 40. Bc4 {[%emt 0:02:42]} Bc8 {[%emt 0:00:40]} 41. Be2 {[%emt 0:51:50]} Nb8 {[%emt 0:11:19]} 42. Kd2 {[%emt 0:00:00]} Bd7 {[%emt 0:01:26]} 43. Ba7 {[%emt 0:00:00]} Nc6 {[%emt 0:00:02]} 44. Be3 {[%emt 0:00:00]} Bc8 {[%emt 0:08:16]} 45. Kd3 {[%emt 0:00:00]} Be6 {[%emt 0:07:28]} 46. Bf2 {[%emt 0:00:00]} Bd7 {[%emt 0:02:32]} 47. Bb6 {[%emt 0:00:00]} Be6 {[%emt 0:03:58]} 48. Bf3 {[%emt 0:00:00]} Bd7 {[%emt 0:01:27]} 49. Ke3 {[%emt 0:00:00]} Nb8 {[%emt 0:02:32]} 50. Be2 {[%emt 0:00:00]} Be6 {[%emt 0:03:48]} 51. fxe5+ {[%emt 0:00:00]} fxe5 {[%emt 0:00:02]} 52. g4 {[%emt 0:00:00]} Bf7 {[%emt 0:06:05]} 53. Bd8 {[%emt 0:00:00]} Nc6 {[%emt 0:00:15]} 54. Bh4 {[%emt 0:00:00]} a5 {[%emt 0:01:41]} 55. g5 {[%emt 0:00:00]} hxg5 {[%emt 0:01:25]} 56. Bxg5 {[%emt 0:00:00]} Nd4 {[%emt 0:00:32]} 57. Bd8 {[%emt 0:00:00]} Nxe2 {[%emt 0:00:45]} 58. Kxe2 {[%emt 0:00:00]} a4 {[%emt 0:00:30]} 59. bxa4 {[%emt 0:01:03]} Bxh5+ {[%emt 0:00:04]} 60. Ke3 {[%emt 0:00:35]} Bf7 {[%emt 0:00:14]} 61. Ba5 {[%emt 0:15:34]} b3 {[%emt 0:18:45]} 62. Bb4+ {[%emt 0:00:34]} Kd7 {[%emt 0:00:08]} 63. axb3 {[%emt 0:00:06]} Bxb3 {[%emt 0:00:02]} 64. a5 {[%emt 0:00:11]} 1/2-1/2